Cogmind - Beta 16 @@@ ROGUE MODE // 2026.02.07 @ 23:05:54 Player: sanktem Result: Destroyed by Y-45 Defender with Heavy Assault Rifle Performance ------------- Evolutions (1) 500 Regions Visited (2) 400 Robots Destroyed (45) 225 Value Destroyed (1136) 1136 Prototype IDs (2) 40 Alien Tech Used (0) 0 Bonus (0) 0 TOTAL SCORE: 2301 Bonus ------- None Cogmind --------- Core Integrity 0/400 Matter 229/300 Energy 123/125 System Corruption 2% Temperature Cool (0) Movement Walking (105) Location -9/Materials Parts ------- > --- POWER (1) -------- Light Ion Engine > --- PROPULSION (4) --- Aluminum Leg (fused) Aluminum Leg Aluminum Leg Aluminum Leg > --- UTILITY (2) ------ Medium Storage Unit > --- WEAPON (2) ------- Light Assault Rifle Heavy Assault Rifle > --- INVENTORY (10) --- Light Ion Engine Aluminum Leg Assault Rifle Light Assault Rifle Light Assault Rifle Heavy Assault Rifle Peak State ------------ > --- POWER ------------ Ion Engine > --- PROPULSION ------- Aluminum Leg Aluminum Leg Aluminum Leg Aluminum Leg > --- UTILITY ---------- Medium Storage Unit Power Shielding > --- WEAPON ----------- Light Assault Rifle Heavy Assault Rifle > --- INVENTORY -------- Light Ion Engine Light Ion Engine Aluminum Leg Light Armor Plating Light Armor Plating Medium Laser Light Assault Rifle Light Assault Rifle Heavy Assault Rifle [Rating: 11] Favorites ----------- Power Ion Engine Engine Ion Engine Propulsion Aluminum Leg Treads Light Treads Leg Aluminum Leg Utility Medium Storage Unit Storage Medium Storage Unit Protection Power Shielding Weapon Light Assault Rifle Energy Gun Medium Laser Ballistic Gun Light Assault Rifle Special Weapon Mining Laser Build | -11 -10 -9 ------- Run | Yrd Mat Mat Slots Evolved 2 | . . 2 Power . | . . . Propulsion 2 | . . 2 Utility . | . . . Weapon . | . . . Parts Attached 32 | 6 9 17 Power 4 | 1 1 2 Engine 4 | 1 1 2 Core . | . . . Reactor . | . . . Propulsion 14 | 2 2 10 Treads 2 | 2 . . Leg 12 | . 2 10 Wheel . | . . . Hover . | . . . Flight . | . . . Utility 5 | 1 2 2 Device . | . . . Storage 2 | 1 1 . Processor . | . . . Hackware . | . . . Protection 3 | . 1 2 Artifact . | . . . Weapon 9 | 2 4 3 Energy Gun 2 | 2 . . Energy Cannon . | . . . Ballistic Gun 6 | . 3 3 Ballistic Cannon . | . . . Launcher . | . . . Special Weapon 1 | . 1 . Impact Weapon . | . . . Slashing Weapon . | . . . Piercing Weapon . | . . . Special Melee Weapon . | . . . Unidentified Prototypes . | . . . Parts Lost 16 | . 2 14 Power 3 | . 1 2 Propulsion 7 | . . 7 Utility 1 | . . 1 Weapon 5 | . 1 4 Highest Loss Streak 4 | . 2 4 To Critical Strikes . | . . . Average Backups 6 | 1 5 8 Power 1 | . . 1 Propulsion 1 | 1 2 1 Utility . | . . . Weapon 3 | . 2 4 Tool/Special . | . . . Unused Backups 10 | . . 10 Power 1 | . . 1 Propulsion 2 | . . 2 Utility 2 | . . 2 Weapon 5 | . . 5 Tool/Special . | . . . Average Slot Usage (%) 93 | . 90 96 Engine 12 | . 13 10 Treads 4 | . 11 . Leg 31 | . 16 42 Storage 12 | . 13 11 Protection 8 | . 6 9 Energy Gun 4 | . 11 . Ballistic Gun 18 | . 16 20 Peak Build Rating 11 | 6 7 11 Average Rating 8 | 5 6 10 On Entrance 4 | . 6 7 Avg Prop Armor Cover (%) . | . . . Naked Turns . | . . . Heaviest Build 22 | 14 19 22 Greatest Support 43 | 40 40 43 Greatest Overweight (x) 5 | . 5 . Average Overweight (x) . | . . . Largest Inventory Capacity 10 | 8 10 10 Average Capacity 9 | 7 9 10 Most Carried 10 | 4 7 10 Average Carried 6 | 2 5 8 Final Capacity 10 | 8 10 10 Final Carried 6 | 3 5 6 Class Distribution -------------------- 63% | Mutant 36% | Scavenger-Mutant Dominant Class ---------------- Mutant | -10/Materials Scavenger-Mutant | -9/Materials Resources | -11 -10 -9 ----------- Run | Yrd Mat Mat Matter Collected 820 | 216 151 453 Remotely . | . . . Salvage Created 1486 | . 335 1151 Parts 104 | . 13 91 Haulers Intercepted . | . . . Recyclers Shooed . | . . . Parts Field Recycled . | . . . Retrieved Matter . | . . . Parts Self-Destructed . | . . . Prevented . | . . . Parts Restored . | . . . Kills | -11 -10 -9 ------- Run | Yrd Mat Mat Combat Hostiles Destroyed 41 | . 9 32 Guns 41 | . 9 32 Classes Destroyed 7 | . 4 3 Worker 3 | . 2 1 Watcher 1 | . 1 . Swarmer 15 | . 5 10 Grunt 19 | . 4 15 Brawler 1 | . . 1 Duelist 1 | . . 1 Sentry 5 | . . 5 Best Kill Streak 7 | . 4 7 Combat Bots Only 7 | . 2 7 Max Kills in Single Turn 1 | . 1 1 Gunslinging . | . . . Exploded . | . . . Melee . | . . . Uniques/NPCs Destroyed . | . . . Combat | -11 -10 -9 -------- Run | Yrd Mat Mat Hostile Shots Fired 297 | . 71 226 Missed 94 | . 24 70 Hits 203 | . 47 156 Melee 12 | . . 12 Projectile 191 | . 47 144 Critical Strikes 6 | . 2 4 Damage Taken 2458 | . 474 1984 Core 484 | . 77 407 Absorbed by Shields . | . . . Redirected to Shielding 3 | . 3 . Regen/Repaired (Parts) 137 | . 53 84 Core Remaining (%) 84 | 100 69 . Volleys Fired 167 | . 33 134 Largest 2 | . 2 2 Hottest 120 | . 120 43 Shots Fired 319 | . 65 254 Gun 316 | . 62 254 Cannon . | . . . Launcher . | . . . Special 3 | . 3 . Kinetic 296 | . 42 254 Thermal 23 | . 23 . Explosive . | . . . Electromagnetic . | . . . Robot Hit Streak 21 | . 21 12 Robot Miss Streak 5 | . 4 5 Penetration Max . | . . . Secondary Targets 3 | . 1 2 Max Gunslinging Chain 1 | . 1 1 Shots Hit Robots 206 | . 39 167 Core Hits 97 | . 21 76 Critical Kills 1 | . . 1 Critical Parts Destroyed 1 | . . 1 Critical Strikes 3 | . 1 2 Burn 1 | . 1 . Destroy 2 | . . 2 Melee Attacks . | . . . Impact . | . . . Slashing . | . . . Piercing . | . . . Sneak Attacks . | . . . Combat Hostiles . | . . . Follow-up Attacks . | . . . Damage Inflicted 2121 | 3 420 1698 Guns 2041 | . 409 1632 Cannons . | . . . Explosions . | . . . Melee . | . . . Ramming 80 | 3 11 66 Kinetic 1827 | . 195 1632 Thermal 214 | . 214 . Explosive . | . . . Electromagnetic . | . . . Impact . | . . . Slashing . | . . . Piercing . | . . . Highest Corruption 2 | . 1 2 Average Corruption 1 | . 1 1 Corruption Purged . | . . . Corruption Blocked . | . . . Effects 18 | . 8 10 Matter Fused 2 | . 1 1 Heat Flow Errors 4 | . 1 3 Energy Discharges 4 | . 3 1 Parts Fused 1 | . . 1 Data Loss (minor) 5 | . 3 2 Data Loss (major) 1 | . . 1 Alerts 1 | . . 1 Overload Shots . | . . . Overflow Damage . | . . . Projectiles . | . . . Explosions . | . . . Melee . | . . . Knockbacks 3 | . 2 1 Impact 2 | . 1 1 Kinetic . | . . . Secondary 1 | . 1 . Self-Inflicted Damage . | . . . Shots . | . . . Rammed 2 | 1 1 . Targets Rammed 21 | 1 4 16 Kicked 19 | . 3 16 Crushed . | . . . Highest Temperature 246 | . 246 227 Average Temperature 49 | . 70 29 Received Heat Transfer 753 | . 219 534 Siege Activations . | . . . Martial Activations . | . . . Shielding Activations . | . . . Robots Disrupted . | . . . Combat Hostiles . | . . . Robots Corrupted . | . . . Combat Hostiles . | . . . Parts Fried . | . . . Impact Corruptions . | . . . Robots Melted . | . . . Combat Hostiles . | . . . Parts Melted 3 | . 3 . Heat Transferred 703 | . 703 . Parts Sabotaged . | . . . Parts Stolen . | . . . Parts Stripped . | . . . Power Chain Reactions . | . . . Alert | -11 -10 -9 ------- Run | Yrd Mat Mat Maximum Alert Level 1 | . . 1 Low Security (%) 68 | 100 100 40 Level 1 31 | . . 59 Level 2 . | . . . Level 3 . | . . . Level 4 . | . . . Level 5 . | . . . High Security . | . . . Max Security . | . . . Peak Influence 295 | . 50 295 Initial . | . . . Average 100 | . 10 180 Influence Increases 1110 | . 253 857 Destroy 0b10 Robot/C 820 | . 180 640 Destroy 0b10 Robot/NC 20 | . 15 5 Destroy Leader 192 | . 42 150 Successful Hack 29 | . 14 15 Destroy Structure 4 | . 2 2 Lose Combat Pursuer 45 | . . 45 Influence Decreases 859 | . 252 607 Entered New Map 1 | . . 1 Time Decay 708 | . 232 476 Lost Part 150 | . 20 130 Squads Dispatched 10 | . 5 5 Investigation 6 | . 4 2 Extermination . | . . . Reinforcement 4 | . 1 3 Assault . | . . . Garrison . | . . . Intercept . | . . . Searches Triggered . | . . . Construction Impeded 1 | . . 1 Haulers Reinforced . | . . . Active Scanning Responses . | . . . Cargo Convoy Interrupts . | . . . Stealth | -11 -10 -9 --------- Run | Yrd Mat Mat Distress Signals 7 | . 1 6 Communications Jammed . | . . . Distress Signals . | . . . Times Spotted 80 | . 22 58 Peak Tracking Total 5 | . 4 5 Tactical Retreats 2 | . . 2 Traps | -11 -10 -9 ------- Run | Yrd Mat Mat Traps Triggered 6 | . 4 2 Indirectly . | . . . Trap Hack Attempts . | . . . Triggered . | . . . Disarmed . | . . . Reprogrammed . | . . . Reused . | . . . Traps Extracted . | . . . Installed . | . . . Triggered . | . . . Machines | -11 -10 -9 ---------- Run | Yrd Mat Mat Machines Disabled . | . . . Max in Single Turn . | . . . Machines Repaired . | . . . Machines Dismantled . | . . . Machines Sabotaged . | . . . Overloaded Fab Kills . | . . . Hacking | -11 -10 -9 --------- Run | Yrd Mat Mat Machines Accessed 12 | . 6 6 Terminals 6 | . 3 3 Fabricators . | . . . Repair Stations 2 | . 1 1 Recycling Units 3 | . 2 1 Scanalyzers 1 | . . 1 Garrison Access . | . . . Total Hacks 40 | . 20 20 Successful 23 | . 14 9 Failed 17 | . 6 11 Catastrophic 2 | . . 2 Database Lockouts . | . . . Manual . | . . . Terminals 18 | . 7 11 Fabricators . | . . . Repair Stations 5 | . 2 3 Recycling Units 14 | . 11 3 Scanalyzers 3 | . . 3 Garrison Access . | . . . Terminal Hacks 9 | . 4 5 Record 1 | . 1 . Prototype ID Bank 1 | . . 1 Terminal Index 1 | . . 1 Alert Level 2 | . 1 1 Dispatch Records 2 | . 1 1 Security Status 1 | . . 1 Recall Investigation 1 | . 1 . Fabricator Hacks . | . . . Repair Station Hacks 4 | . 2 2 Scan Component 2 | . 1 1 Repair 2 | . 1 1 Recycling Unit Hacks 9 | . 8 1 Recycle Component 1 | . 1 . Process 2 | . 2 . Report Inventory 3 | . 3 . Retrieve Components 3 | . 2 1 Scanalyzer 1 | . . 1 Retrieve Study 1 | . . 1 Garrison Access Hacks . | . . . Unauthorized Hacks . | . . . Terminals . | . . . Fabricators . | . . . Repair Stations . | . . . Recycling Units . | . . . Scanalyzers . | . . . Garrison Access . | . . . Data Cores Recovered . | . . . Used . | . . . Hacking Detections 10 | . 4 6 Full Trace Events 7 | . 3 4 Feedback Events . | . . . Feedback Blocked . | . . . Robot Schematics Acquired . | . . . Robots Built . | . . . Authchips . | . . . Time . | . . . Total Robot Build Rating . | . . . Part Schematics Acquired . | . . . Parts Built . | . . . Authchips . | . . . Time . | . . . Total Part Build Rating . | . . . Part Studies Acquired 1 | . . 1 Parts Repaired 2 | . 1 1 Time 52 | . 26 26 Parts Recycled 1 | . 1 . Recycled Matter 136 | . 136 . Retrieved Matter . | . . . Retrieved Components 9 | . . 9 Parts Scanalyzed . | . . . Part Schematics Acquired . | . . . Parts Damaged . | . . . Bothacking | -11 -10 -9 ------------ Run | Yrd Mat Mat Used RIF Installer . | . . . Robots Hacked . | . . . Non-combat . | . . . Combat . | . . . Robot Hacks Applied . | . . . Relay Couplers Released . | . . . Fabnet Peak Effective % . | . . . Robots Rewired . | . . . Allies Hacked . | . . . Hacks Repelled . | . . . Allies | -11 -10 -9 -------- Run | Yrd Mat Mat Total Allies . | . . . Largest Group . | . . . Highest-Rated Group . | . . . Highest-Rated Ally . | . . . Total Orders . | . . . Ally Attacks . | . . . Total Damage . | . . . Kills . | . . . Allies Corrupted . | . . . Allies Melted . | . . . Intel | -11 -10 -9 ------- Run | Yrd Mat Mat Active Infowar (turns) . | . . . Robot Analysis Total . | . . . Derelict Logs Recovered . | . . . Drone Launches . | . . . Drone Recoveries . | . . . Exploration | -11 -10 -9 ------------- Run | Yrd Mat Mat Turns Passed 2944 | 115 1255 1574 Spaces Moved 1832 | 71 819 942 Core 16 | 15 1 . Treads 335 | 56 279 . Legs 1481 | . 539 942 Wheels . | . . . Hover . | . . . Flight . | . . . Fastest Speed 50 | 50 120 105 Average Speed 126 | 136 133 119 Slowest Speed 300 | 160 300 120 Overloaded Moves . | . . . Propulsion Burnouts . | . . . Robots Hopped . | . . . Potential Cave-ins . | . . . Cave-ins Triggered . | . . . Exploration Rate (%) 59 | 5 99 74 Regions Visited 2 Branch Regions . Pre-discovered Areas . | . . . Known Exits Taken . | . . . Unknown Exits Taken 2 | 1 1 . Scrap Searched . | . . . Spaces Dug 3 | . 3 . Terrain Destroyed 3 | . 3 . Melee . | . . . Projectile 3 | . 3 . AOE . | . . . Terrain Rammed . | . . . Walls Destroyed . | . . . Machines Disabled . | . . . Actions | -11 -10 -9 --------- Run | Yrd Mat Mat Total 2188 | 88 917 1183 Wait 68 | 2 29 37 Move 1830 | 70 818 942 Hop . | . . . Pick Up 52 | 9 17 26 Fast Attach . | . . . Attach 34 | 6 10 18 Detach 2 | . 1 1 Swap 1 | . . 1 Drop 13 | . 5 8 Fire 167 | . 33 134 Melee . | . . . Ram . | . . . Kick 19 | . 3 16 Crush 2 | 1 1 . Escape Stasis . | . . . Rewire . | . . . Trap . | . . . Miscellaneous . | . . . Route ------- -11/Scrapyard -10/Materials (discovered 5 exits: *Mat x3 / [*Min] / [*Sub]) -9/Materials (discovered 3 exits: [*Mat x2] / [*Min]) History --------- Turn | Location | Event 36 | -11/Scrapyard | Discovered new exit (range 16) 116 | -11/Scrapyard | Entered Materials 307 | -10/Materials | Build established: Mutant 408 | -10/Materials | Discovered new exit (range 8) 520 | -10/Materials | Discovered new exit (range 16) 710 | -10/Materials | Discovered new exit (range 8) 913 | -10/Materials | Discovered new exit (range 11) 971 | -10/Materials | Discovered new exit (range 15) 1189 | -10/Materials | Repaired Lgt. Assault Rifle 1371 | -10/Materials | Entered another Materials area 1371 | -9/Materials | Evolved 2 slots: Propulsion x2 1692 | -9/Materials | Discovered new exit (range 15) 2059 | -9/Materials | Destroyed 7 combat bots 2117 | -9/Materials | Discovered new exit (range 12) 2132 | -9/Materials | Build established: Scavenger-Mutant 2210 | -9/Materials | Lost 3 parts (1p1u1w) 2484 | -9/Materials | Repaired Lgt. Armor Plating 2511 | -9/Materials | Discovered new exit (range 3) 2529 | -9/Materials | Core integrity fell below 50% 2850 | -9/Materials | Core integrity fell below 20% 2882 | -9/Materials | Lost 4 parts (1p2n1w) 2945 | -9/Materials | Destroyed by Y-45 Defender with Heavy Assault Rifle Last Messages --------------- 02868_ K-01 Serf collects debris. 02871_ R-06 Scavenger collects Melee Analysis Suite. 02871_ Acquired Aluminum Leg. 02871_ R-06 Scavenger collects Ion Engine. 02873_ K-01 Serf cleans the Neutrino Reactor. 02876_ Connecting with Scanalyzer... >>Study(Aluminum Leg) Identified Aluminum Leg... Downloading performance data... Effective improvements: -15 time/move 02879_ K-01 Serf cleans the Neutrino Reactor. 02883_ K-01 Serf collects debris. 02892_ K-01 Serf cleans the Neutrino Reactor. 02895_ System corrupted: Matter fused (-9). 02896_ K-01 Serf collects debris. 02908_ K-01 Serf cleans the Scanalyzer. 02927_ System corrupted: Component data lost. Map ----- +----------------------------------------------------+ | ???????????????????????????????????????????? | | ???????????????????????????????????????????? | | ???????????????????????????????????????????? | | ???????????????????????????????????????????? | | ???????????????????????????????????????????? | | ???????????????????????????????????????????? | | ???????????????????????????????????????????? | | ???????????????????????????????????????????? | | ???????????????????????????????????????????? | | ???????????????????????????????????????????? | | ??????????????????????????????????#######??? | | ??????????????????????????????????# ]#??? | | ??????????????????????????????????? ! #??? | | ??????????????????????????????????? #??? | | ??????????????????????????????????? #??? | | ??????????????????????????????????? ???? | | ???????????????????????????????????# #???? | | ???????????????????????????????????# #???? | | ???????????????????????????????????# #???? | | ???????????????????????????????????# +???? | | ???????????????????????????????????# #???? | | ???????????????????????############# #???? | | ???????????###?????????# #???? | | ???????????# ???????# ##### ######+#####? | | ???????????#= ######+#####+### #? | | ???????????# /@ Y/ # """ #? | | ???????????# """" # #### # """ #? | | ???????????? """??# #??# # """ "" #? | | ?????????????"????# #??# # """## | | ??????????????????# #??# # """% S"## | | ??????????????????# #??# # """ """## | | ??????????????????# #??# # """%"""## | | ??????????????????# #??# # ## | | ??????????????????# #??##+####+####+######## | | ??????????????????# % | | ??????????????????+ * | | ??????????????????# | | ??????????????????###+########## ###### | | ???????????????????????????????# ###### | | ???????????????????????????????#]]!![[# ! | | ???????????????????????????????#]]!![[# | | ???????????????????????????????######## | | ??????????????????????????????????????# | | ??????????????????????????????????########## | | ?????????????????????????????????? | | ?????????????????????????????????# """ = | | ?????????????????????????????????# """ | | ?????????????????????????????????# "S """ | | ?????????????????????????????????# """ """ | | ?????????????????????????????????# "" """ | +----------------------------------------------------+ Best States ------------- Heat Dissipation 28 Energy Generation 10 Energy Capacity 250 Matter Stores 300 Matter Capacity 300 Sight Range 16 Terrain Scan Density 10 Armor Coverage 150 Power Shielding 33 Evasion (%) 55 Recoil Reduction 2 Item Schematics ----------------- None Robot Schematics ------------------ None Fabricated ------------ Nothing Repaired ---------- Lgt. Assault Rifle | 33% | -10/Materials Lgt. Armor Plating | 6% | -9/Materials Studied --------- Aluminum Leg | -9/Materials | Hacked Alien Tech Used ----------------- None Achievements -------------- None Challenges ------------ None Game ------ Seed HardlightSpikedScreen Manual? 0 Play Time 00:34:48 Cumulative 10.2 hours Start 2026.02.07 @ 18:04:55 End 2026.02.07 @ 23:05:54 Sessions 3 Manual Loads 0 Difficulty Rogue Special Mode None Game No. 15 Rogue 15 Adventurer 0 Explorer 0 Win Type - Total 0 Types 0/0/0/0/0/0/0/0/0/0 Lore% 3 Gallery% 8 Achievement% 11 Wizard Run 0 Options --------- Layout 1 ASCII 0 Keyboard 1 Movement Vi Keybinds 0 Fullscreen 1 Font 24/Smallcaps Map View 50x35 Zoom Use 0% Tactical HUD 1 Map Filters NONE Filters NONE Steam 1 RUN: dc63aee5-f540-419a-bb38-283d098c0a45